bitfinex/quotes_SOLUSD_20250817
["timestamp","ask_amount","ask_price","bid_price","bid_amount"]
[1755446653613,0.06,195.42,195.41,5.99325192]
[1755446653994,0.06,195.42,195.41,5.11744537]
[1755446654313,0.06,195.42,195.41,11.11069729]
[1755446655228,0.06,195.42,195.41,11.81069729]
[1755446655891,0.06,195.42,195.41,6.69325192]
[1755446656107,0.76,195.42,195.38,5.99325192]
[1755446656392,0.7,195.41,195.39,37.0]
[1755446656590,0.7,195.4,195.39,37.0]
[1755446657516,10.48284425,195.4,195.39,37.0]
[1755446658012,30.70676708,195.4,195.39,37.0]
[1755446660318,24.71351516,195.4,195.39,37.0]
[1755446660620,3.791263,195.4,195.39,37.0]
[1755446661001,3.79100571,195.4,195.39,37.0]
[1755446661601,10.48425763,195.4,195.39,37.0]
[1755446661991,30.70818046,195.4,195.39,37.0]
[1755446663423,4.49100571,195.4,195.39,37.0]
[1755446663723,0.7,195.4,195.39,37.0]
[1755446663902,3.79100571,195.4,195.39,37.0]
[1755446664526,30.70818046,195.4,195.39,37.0]
[1755446666021,15.10621557,195.39,195.33,0.7]
[1755446666327,5.11823113,195.38,195.34,36.92]
[1755446666533,5.81823113,195.38,195.34,36.92]
[1755446667112,5.99325192,195.36,195.34,36.92]
[1755446667308,0.7,195.35,195.34,36.92]
[1755446667630,6.69325192,195.35,195.34,36.92]
[1755446667999,5.99325192,195.36,195.34,36.92]
[1755446668404,11.11205951,195.36,195.34,36.92]
[1755446668635,5.11880759,195.36,195.34,36.92]
[1755446668924,21.09946749,195.37,195.34,36.92]
[1755446669241,5.11796918,195.39,195.34,36.92]
[1755446669539,15.10621557,195.37,195.34,36.92]
[1755446670027,5.99325192,195.36,195.34,36.92]
[1755446670227,0.7,195.37,195.34,36.92]
[1755446670418,8.97372934,195.37,195.34,36.92]
[1755446670612,3.85514906,195.39,195.34,36.92]
[1755446670816,8.97264824,195.41,195.36,3.85514906]
[1755446671123,8.97264824,195.41,195.37,0.7]
[1755446671324,3.85514906,195.38,195.34,36.92]
[1755446671906,3.85514906,195.38,195.34,37.62]
[1755446672227,15.80621557,195.4,195.34,37.62]
[1755446672527,12.77117295,195.39,195.34,37.62]
[1755446672828,8.97326103,195.39,195.34,37.62]
[1755446673029,8.97326103,195.39,195.35,0.7]
[1755446673727,5.11811197,195.39,195.35,0.7]
[1755446673929,8.97326103,195.39,195.35,0.7]
[1755446674817,19.02136463,195.42,195.36,4.55514906]
[1755446675026,7.65641239,195.41,195.36,4.55514906]
[1755446675215,22.76262796,195.4,195.34,46.59436812]
[1755446675414,3.80126333,195.39,195.36,0.7]
[1755446675609,3.80126333,195.39,195.34,40.77514906]
[1755446675814,7.65641239,195.39,195.35,0.7]
[1755446676015,15.10621557,195.4,195.34,40.77514906]
[1755446676016,15.10621557,195.4,195.36,4.55514906]
[1755446676338,3.80297146,195.39,195.37,0.7]
[1755446676541,15.10621557,195.41,195.38,37.5]
[1755446676731,3.80447818,195.4,195.38,37.5]
[1755446677032,0.06,195.42,195.39,4.55514906]
[1755446677204,3.80496136,195.41,195.39,4.55514906]
[1755446677405,3.80496136,195.4,195.39,4.55514906]
[1755446677603,3.80496136,195.41,195.39,4.55514906]
[1755446677799,3.80496136,195.4,195.39,4.55514906]
[1755446678106,0.06,195.42,195.39,9.67311824]
[1755446678327,0.06,195.42,195.41,3.85514906]
[1755446678832,0.06,195.42,195.41,4.55514906]
[1755446680334,0.06,195.42,195.41,9.67259443]
[1755446681615,0.06,195.42,195.41,4.55514906]
[1755446682713,0.06,195.42,195.39,3.85514906]
[1755446683116,0.06,195.42,195.38,36.8]
[1755446683318,0.7,195.41,195.38,36.8]
[1755446683837,3.91514906,195.42,195.38,36.8]
[1755446684023,0.7,195.4,195.38,36.8]
[1755446684222,0.7,195.39,195.38,36.8]
[1755446684836,4.55514906,195.39,195.38,36.8]
[1755446686014,9.67311824,195.39,195.38,36.8]
[1755446686451,5.11796918,195.39,195.38,36.8]
[1755446686825,5.81796918,195.39,195.38,36.8]
[1755446687228,5.11796918,195.39,195.38,36.8]
[1755446688560,8.97290378,195.4,195.38,36.8]
[1755446689742,0.7,195.39,195.38,36.66]
[1755446689947,8.97290378,195.4,195.38,36.66]
[1755446690827,3.85514906,195.4,195.38,36.66]
[1755446691152,15.10621557,195.4,195.38,37.35]
[1755446691445,0.06,195.42,195.38,36.66]
[1755446691622,0.06,195.4,195.39,0.69]
[1755446691824,0.06,195.4,195.39,4.54514906]
[1755446692743,0.06,195.4,195.39,9.66311824]
[1755446693229,0.06,195.4,195.39,4.54514906]
[1755446693551,0.06,195.4,195.38,36.66]
[1755446694417,15.86621557,195.4,195.38,36.66]
[1755446694653,3.85514906,195.39,195.38,36.66]
[1755446694841,4.55514906,195.39,195.38,36.66]
[1755446695028,9.67311824,195.39,195.33,0.69]
[1755446695235,3.85514906,195.38,195.34,36.62]
[1755446695629,4.55514906,195.38,195.34,36.62]
[1755446696148,5.11796918,195.39,195.34,36.62]
[1755446696347,3.82287835,195.38,195.34,37.31]
[1755446696536,4.55514906,195.38,195.34,36.62]
[1755446696733,3.85514906,195.38,195.34,36.62]
[1755446697053,3.85514906,195.38,195.34,37.31]
[1755446697257,8.97345082,195.38,195.34,37.31]
[1755446697624,3.85514906,195.35,195.31,0.72]
[1755446697833,3.85514906,195.35,195.32,36.6]
[1755446698238,3.85514906,195.34,195.32,36.6]
[1755446698440,7.67875134,195.34,195.32,36.6]
[1755446698653,3.85514906,195.34,195.32,36.6]
[1755446698859,8.97466146,195.34,195.32,36.6]
[1755446699033,18.96136463,195.33,195.32,36.6]
[1755446700345,22.78594049,195.33,195.32,36.6]
[1755446701751,23.48594049,195.33,195.32,36.6]
[1755446701961,15.10621557,195.32,195.31,0.03]
[1755446702260,41.10621557,195.3,195.29,0.03]
[1755446702433,52.2281527,195.3,195.29,0.03]
[1755446702627,52.9281527,195.3,195.29,0.03]
[1755446704160,58.0484804,195.3,195.29,0.03]
[1755446704753,54.19333134,195.3,195.29,0.03]
[1755446704959,18.93079143,195.3,195.29,0.03]
[1755446705335,15.10621557,195.3,195.29,0.03]
[1755446705552,18.92338478,195.3,195.29,0.03]
[1755446705733,27.89886154,195.3,195.29,0.03]
[1755446705938,28.59736714,195.3,195.29,0.03]
[1755446706154,22.77703944,195.3,195.29,0.03]
[1755446706357,15.10621557,195.3,195.29,0.72]
[1755446706563,15.10621557,195.33,195.29,0.72]
[1755446706858,18.96136463,195.33,195.3,0.69]
[1755446707329,15.10621557,195.33,195.3,0.69]
[1755446707667,39.49646072,195.37,195.29,36.63]
[1755446707668,15.10621557,195.34,195.31,0.69]
[1755446708739,15.10621557,195.34,195.32,0.69]
[1755446710147,15.10621557,195.34,195.3,3.85514906]
[1755446710357,18.96136463,195.34,195.29,46.29564634]
[1755446710548,3.85514906,195.33,195.29,37.32]
[1755446712018,24.0806476,195.34,195.3,0.69]
[1755446712273,15.10621557,195.34,195.31,0.69]
[1755446712576,3.85514906,195.33,195.29,36.63]
[1755446712768,18.96136463,195.31,195.29,36.63]
[1755446713138,3.85514906,195.3,195.29,36.63]
[1755446713354,15.80621557,195.31,195.29,36.63]
[1755446713756,15.10621557,195.31,195.29,36.63]
[1755446714683,15.10621557,195.31,195.29,37.3]
[1755446715051,20.22629002,195.31,195.29,36.63]
[1755446715253,15.10621557,195.31,195.29,36.63]
[1755446715571,3.85514906,195.32,195.3,0.67]
[1755446716903,15.10621557,195.31,195.29,36.63]
[1755446717203,18.96136463,195.31,195.29,36.63]
[1755446717389,3.85514906,195.3,195.29,36.63]
[1755446717893,15.10621557,195.31,195.29,37.3]
[1755446718099,8.97496012,195.32,195.29,36.63]
[1755446718304,3.85514906,195.3,195.29,36.63]
[1755446718469,8.97547676,195.3,195.29,36.63]
[1755446718803,0.7,195.31,195.29,36.63]
[1755446718804,5.12013338,195.31,195.29,36.63]
[1755446718982,8.97528244,195.31,195.29,36.63]
[1755446719300,26.06,195.35,195.3,0.67]
[1755446719301,15.10621557,195.32,195.3,0.67]
[1755446719667,0.76,195.35,195.29,36.63]
[1755446719902,19.02136463,195.35,195.3,4.52514906]
[1755446720077,19.02136463,195.35,195.31,0.67]
[1755446720483,19.02136463,195.35,195.31,5.78995426]
[1755446720681,15.16621557,195.35,195.32,0.67]
[1755446720881,15.16621557,195.35,195.33,36.52]
[1755446721094,3.91514906,195.35,195.33,36.52]
[1755446721301,3.85514906,195.34,195.33,36.52]
[1755446721690,3.85514906,195.34,195.32,36.52]
[1755446721886,3.91514906,195.35,195.32,36.52]
[1755446722393,3.85514906,195.34,195.32,36.52]
[1755446722593,19.66136463,195.33,195.32,36.52]
[1755446722887,15.10621557,195.32,195.3,36.52]
[1755446723089,3.85514906,195.32,195.3,36.52]
[1755446723607,15.10621557,195.33,195.3,37.19]
[1755446724786,15.10621557,195.33,195.31,0.67]
[1755446724987,15.10621557,195.34,195.32,0.67]
[1755446726001,15.10621557,195.34,195.3,37.22]
[1755446726311,15.10621557,195.34,195.31,0.67]
[1755446726497,15.16621557,195.34,195.31,0.67]
[1755446727907,0.06,195.34,195.32,4.52514906]
[1755446728207,0.06,195.34,195.33,4.52514906]
[1755446728586,0.06,195.34,195.33,9.64469034]
[1755446732704,0.06,195.34,195.33,46.16469034]
[1755446732907,0.06,195.34,195.33,46.67664446]
[1755446733296,0.06,195.35,195.33,46.67664446]
[1755446733499,0.06,195.35,195.34,4.52514906]
[1755446735290,0.06,195.35,195.34,9.64442826]
[1755446735691,1e-08,195.35,195.34,9.64442826]
[1755446736720,1e-08,195.35,195.34,46.14442826]
[1755446742242,1e-08,195.35,195.34,72.14442826]
[1755446742416,1e-08,195.35,195.34,46.14442826]
[1755446742618,1e-08,195.35,195.34,8.97442826]
[1755446742823,4.55514907,195.35,195.3,3.88514906]
[1755446743030,3.85514907,195.35,195.31,36.5]
[1755446743214,0.7,195.34,195.31,40.35514906]
[1755446743410,1e-08,195.35,195.33,3.85514906]
[1755446743716,1e-08,195.35,195.32,0.67]
[1755446743717,1e-08,195.35,195.34,36.52]
[1755446743917,1e-08,195.35,195.34,40.37514906]
[1755446744135,1e-08,195.35,195.34,45.49442826]
[1755446744340,1e-08,195.35,195.34,46.16442826]
[1755446745044,1e-08,195.35,195.34,5.7892792]
[1755446745206,1e-08,195.35,195.34,45.49442826]
[1755446747019,1e-08,195.35,195.34,46.21442826]
[1755446747242,1e-08,195.35,195.34,46.72635618]
[1755446747637,1e-08,195.35,195.34,5.8392792]
[1755446747956,1e-08,195.35,195.34,45.51442826]
[1755446748740,1e-08,195.35,195.34,40.39514906]
[1755446748919,1e-08,195.35,195.34,36.54]
[1755446749115,0.72000001,195.35,195.34,36.54]
[1755446751234,1e-08,195.35,195.34,36.54]
[1755446752142,0.72000001,195.35,195.34,36.54]
[1755446752920,0.72000001,195.35,195.34,36.04]
[1755446753746,24.80038178,195.35,195.34,36.04]
[1755446754244,28.61708997,195.35,195.34,36.04]
[1755446755350,24.76194091,195.35,195.34,36.04]
[1755446755556,28.61708997,195.35,195.34,36.04]
[1755446757126,24.80038178,195.35,195.34,36.04]
[1755446757632,28.61748464,195.35,195.34,36.04]
[1755446760137,24.80038178,195.35,195.34,36.04]
[1755446760452,28.61828022,195.35,195.34,36.07]
[1755446761254,27.89828022,195.35,195.34,36.07]
[1755446761461,1e-08,195.35,195.34,36.07]
[1755446761630,1e-08,195.35,195.34,40.64514906]
[1755446762136,1e-08,195.35,195.34,45.76442826]
[1755446766337,1e-08,195.35,195.34,41.9092792]
[1755446766549,1e-08,195.35,195.34,45.76442826]
[1755446766947,1e-08,195.35,195.34,46.27635618]
[1755446770259,1e-08,195.35,195.34,50.13150524]
[1755446770440,0.06,195.37,195.36,26.0]
[1755446770639,0.06,195.37,195.36,66.86702457]
[1755446770867,0.06,195.37,195.36,67.58702457]
[1755446772158,0.06,195.37,195.36,76.56092874]
[1755446772664,0.06,195.37,195.36,72.70577968]
[1755446773653,0.06,195.37,195.36,71.98577968]
[1755446774155,0.06,195.37,195.36,72.70577968]
[1755446775570,0.06,195.37,195.36,68.13063062]
[1755446775869,0.75,195.37,195.34,0.03]
[1755446776071,0.69,195.36,195.35,36.5]
[1755446776282,0.69,195.36,195.34,0.03]
[1755446776457,3.85514906,195.35,195.34,0.03]
[1755446776659,3.85514906,195.35,195.34,36.53]
[1755446776850,4.54514906,195.35,195.34,36.53]
[1755446777649,19.65136463,195.35,195.34,36.53]
[1755446777869,28.59219406,195.35,195.34,36.53]
[1755446778068,32.031937,195.35,195.34,36.53]
[1755446778267,28.59219406,195.35,195.34,36.53]
[1755446778587,32.03103073,195.35,195.34,36.53]
[1755446778883,32.03103073,195.35,195.34,0.03]
[1755446779374,28.59219406,195.35,195.34,0.03]
[1755446779570,24.737045,195.35,195.34,0.03]
[1755446779758,28.59219406,195.35,195.34,0.03]
[1755446779954,19.61802786,195.35,195.34,0.03]
[1755446780177,0.06,195.37,195.34,0.03]
[1755446780474,0.06,195.37,195.34,3.88514906]
[1755446780664,0.06,195.37,195.34,0.03]
[1755446782099,0.69,195.36,195.34,0.03]
[1755446782243,3.91514906,195.37,195.34,0.03]
[1755446782448,0.69,195.35,195.34,0.03]
[1755446782858,0.69,195.35,195.34,36.53]
[1755446784471,0.75,195.37,195.34,36.53]
[1755446784674,3.82041575,195.36,195.34,36.53]
[1755446785056,0.75,195.37,195.34,36.53]
[1755446785252,3.82048639,195.36,195.34,36.53]
[1755446785461,4.51048639,195.36,195.34,36.53]
[1755446786465,0.69,195.36,195.34,36.53]
[1755446786687,4.51050027,195.36,195.34,36.53]
[1755446787170,0.69,195.36,195.34,36.53]
[1755446787478,4.51060787,195.36,195.34,36.53]
[1755446787859,0.69,195.36,195.34,36.53]
[1755446788057,19.02136463,195.37,195.34,36.53]
[1755446788258,19.71136463,195.37,195.34,36.53]
[1755446788478,15.85621557,195.37,195.34,36.53]
[1755446788789,19.71136463,195.37,195.34,36.53]
[1755446789877,19.02136463,195.37,195.34,36.53]
[1755446790104,0.06,195.37,195.35,9.69393396]
[1755446790261,0.06,195.37,195.35,8.97393396]
[1755446790459,0.06,195.37,195.36,0.72]
[1755446790770,0.06,195.37,195.36,4.57514906]
[1755446792316,0.06,195.37,195.36,9.69390417]
[1755446793214,0.06,195.37,195.36,5.83875511]
[1755446795173,0.06,195.37,195.36,5.11875511]
[1755446795376,0.06,195.37,195.36,9.69390417]
[1755446799213,0.06,195.37,195.36,92.94905323]
[1755446799214,1e-08,195.37,195.36,92.94905323]
[1755446800491,1e-08,195.37,195.36,93.46092874]
[1755446800804,1e-08,195.37,195.36,129.96092874]
[1755446801003,1e-08,195.37,195.36,129.44905323]
[1755446801416,1e-08,195.37,195.36,125.59390417]
[1755446802819,1e-08,195.37,195.36,46.19390417]
[1755446803109,1e-08,195.37,195.36,46.70577968]
[1755446803285,1e-08,195.37,195.36,50.56092874]
[1755446803490,1e-08,195.38,195.36,65.95092874]
[1755446803688,1e-08,195.38,195.37,4.57514906]
[1755446805217,1e-08,195.38,195.37,9.69364217]
[1755446807929,1e-08,195.38,195.37,5.83849311]
[1755446808136,1e-08,195.38,195.37,9.69364217]
[1755446808721,1e-08,195.38,195.37,11.74308517]
[1755446809609,1e-08,195.38,195.37,91.14308517]
[1755446810014,1e-08,195.38,195.37,91.65493448]
[1755446810213,1e-08,195.38,195.37,89.60549148]
[1755446810713,1e-08,195.38,195.37,91.65493448]
[1755446811108,1e-08,195.38,195.37,91.68493448]
[1755446813595,1e-08,195.39,195.37,91.68493448]
[1755446813922,1e-08,195.39,195.38,40.99514906]
[1755446814330,1e-08,195.39,195.38,41.50697217]
[1755446815616,1e-08,195.39,195.38,46.6252033]
[1755446818216,1e-08,195.39,195.38,9.4852033]
[1755446818521,1e-08,195.39,195.38,45.9452033]
[1755446818909,0.70000001,195.39,195.38,45.43338019]
[1755446820326,0.70000001,195.39,195.38,5.11823113]
[1755446820503,0.70000001,195.39,195.38,36.46]
[1755446821530,0.70000001,195.39,195.38,41.57823113]
[1755446821717,1e-08,195.39,195.38,45.43338019]
[1755446822047,0.70000001,195.39,195.38,45.43338019]
[1755446822511,1e-08,195.39,195.38,45.43338019]
[1755446823815,1e-08,195.39,195.38,41.57823113]
[1755446823816,0.70000001,195.39,195.38,41.57823113]
[1755446823997,0.70000001,195.39,195.38,45.43338019]
[1755446824932,0.70000001,195.39,195.38,41.57823113]
[1755446825117,0.70000001,195.39,195.38,45.43338019]
[1755446825502,0.70000001,195.39,195.38,41.57823113]
[1755446826819,0.70000001,195.39,195.38,36.46]
[1755446827224,0.70000001,195.39,195.38,41.57823113]
[1755446828217,1e-08,195.39,195.38,41.60823113]
[1755446828728,1e-08,195.39,195.38,45.46338019]
[1755446829808,0.70000001,195.39,195.38,45.46338019]
[1755446832904,0.70000001,195.39,195.38,0.03]
[1755446833125,0.70000001,195.39,195.38,36.49]
[1755446833335,0.70000001,195.39,195.38,41.60823113]
[1755446841844,0.70000001,195.39,195.38,36.49]
[1755446842016,23.48952326,195.39,195.38,0.03]
[1755446842216,26.93513228,195.39,195.38,36.49]
[1755446842414,32.05310146,195.39,195.38,36.49]
[1755446845525,32.05310146,195.39,195.38,0.03]
[1755446847941,15.10621557,195.38,195.37,0.03]
[1755446848138,30.78028133,195.38,195.37,0.03]
[1755446848446,26.92513227,195.38,195.37,0.03]
[1755446849951,32.03263492,195.38,195.37,0.03]
[1755446850124,35.88778398,195.38,195.36,0.03]
[1755446850467,35.88778398,195.38,195.32,0.03]
[1755446850468,41.10621557,195.34,195.32,0.03]
[1755446850629,52.22313089,195.34,195.32,0.03]
[1755446850955,52.91313089,195.34,195.32,0.03]
[1755446851862,58.03241009,195.34,195.32,0.03]
[1755446852669,15.10621557,195.32,195.31,0.03]
[1755446852873,26.22313089,195.32,195.31,0.03]
[1755446853178,23.46752187,195.32,195.31,1e-08]
[1755446853337,26.89672476,195.32,195.29,0.03]
[1755446853539,26.89672476,195.31,195.29,0.03]
[1755446854058,32.01679029,195.31,195.29,0.03]
[1755446856866,147.60621557,195.3,195.29,0.03]
[1755446857208,26.89672476,195.3,195.29,0.03]
[1755446857349,41.10621557,195.27,195.26,0.03]
[1755446857548,55.42343485,195.27,195.26,0.03]
[1755446857775,56.11343485,195.27,195.26,0.03]
[1755446858268,61.2345492,195.27,195.26,0.03]
[1755446859081,57.41839196,195.27,195.26,0.03]
[1755446859290,57.36396481,195.27,195.26,0.03]
[1755446859588,61.21911387,195.27,195.26,0.03]
[1755446859883,61.21746005,195.27,195.26,0.03]
[1755446860082,64.6368773,195.27,195.26,0.03]
[1755446860255,101.0968773,195.27,195.26,0.03]
[1755446861582,15.10621557,195.26,195.24,0.03]
[1755446861778,63.07558178,195.25,195.24,0.03]
[1755446862162,63.76558178,195.25,195.24,0.03]
[1755446862361,26.0,195.22,195.1,0.71]
[1755446862574,15.10621557,195.17,195.11,0.71]
[1755446862884,15.10621557,195.14,195.11,0.71]
[1755446863469,3.85514906,195.14,195.11,0.71]
[1755446863671,3.85514906,195.14,195.11,5.83523511]
[1755446863866,3.85514906,195.17,195.12,4.56514906]
[1755446864070,3.85514906,195.17,195.13,0.71]
[1755446864267,18.96136463,195.17,195.13,0.71]
[1755446864467,3.79152104,195.16,195.13,0.71]
[1755446864789,18.96136463,195.18,195.13,4.56514906]
[1755446864968,18.96136463,195.18,195.13,3.85514906]
[1755446865178,18.96136463,195.18,195.14,0.66]
[1755446865476,3.85514906,195.17,195.14,0.66]
[1755446866264,18.96136463,195.18,195.14,5.78443723]
[1755446866494,18.96136463,195.18,195.15,0.66]
[1755446866987,3.85514906,195.19,195.15,0.66]
[1755446867289,3.7885717,195.18,195.15,0.66]
[1755446867591,18.96136463,195.18,195.13,3.85514906]
[1755446867765,3.85514906,195.18,195.16,0.66]
[1755446868090,3.85514906,195.17,195.16,0.66]
[1755446868287,3.85514906,195.17,195.13,5.12463853]
[1755446868468,15.10621557,195.19,195.13,5.12463853]
[1755446868665,3.78684179,195.18,195.13,5.12463853]
[1755446868894,7.64202709,195.17,195.14,0.66]
[1755446869191,15.10621557,195.17,195.15,0.66]
[1755446870290,15.10621557,195.18,195.16,0.66]
[1755446870499,3.78569388,195.17,195.13,5.12463853]
[1755446870673,18.96136463,195.18,195.13,5.12463853]
[1755446870874,3.78569598,195.17,195.13,5.12463853]
[1755446871077,3.85514906,195.18,195.14,0.66]
[1755446871284,3.78569598,195.17,195.14,0.66]
[1755446871485,3.85514906,195.18,195.14,0.66]
[1755446871791,3.78527067,195.17,195.13,8.97978759]
[1755446871975,3.78534156,195.16,195.14,0.66]
[1755446872175,3.85514906,195.17,195.14,0.66]
[1755446872381,3.7849898,195.16,195.14,0.66]
[1755446872597,3.85514906,195.17,195.14,0.66]
[1755446872794,3.78510756,195.16,195.14,0.66]
[1755446873096,15.10621557,195.15,195.14,0.66]
[1755446873302,15.10621557,195.15,195.13,36.54]
[1755446873495,15.10621557,195.15,195.13,37.2]
[1755446874999,15.10621557,195.15,195.14,0.66]
[1755446875194,18.89144327,195.15,195.14,0.66]
[1755446875392,15.10621557,195.18,195.14,0.66]
[1755446875599,7.6403749,195.17,195.15,0.66]
[1755446875903,3.78522584,195.16,195.15,0.66]
[1755446876105,3.78522584,195.16,195.13,41.66478433]
[1755446876397,0.06,195.21,195.15,3.85514906]
[1755446876576,3.78500882,195.2,195.18,3.85514906]
[1755446876895,0.06,195.21,195.19,37.18]
[1755446877102,3.78488712,195.2,195.19,37.18]
[1755446877278,3.78488712,195.2,195.19,36.52]
[1755446877480,3.78574153,195.2,195.19,41.64321327]
[1755446877775,3.78574153,195.2,195.19,42.30321327]
[1755446879205,3.78901419,195.2,195.19,42.30321327]
[1755446879409,0.06,195.21,195.19,42.30321327]
[1755446879575,0.06,195.21,195.2,0.66]
[1755446879776,3.84889237,195.21,195.2,0.66]
[1755446879971,0.06,195.21,195.2,0.66]
[1755446880404,3.85007511,195.21,195.2,0.66]
[1755446881695,3.85007511,195.21,195.2,5.78295081]
[1755446881908,0.06,195.21,195.2,9.63809987]
[1755446882087,0.06,195.21,195.2,10.15039495]
[1755446882279,0.06,195.23,195.2,10.15039495]
[1755446882479,6.64591298,195.27,195.23,26.0]
[1755446882681,6.64591298,195.27,195.26,3.85514906]
[1755446883002,6.64591298,195.27,195.24,36.5]
[1755446883003,10.43915332,195.27,195.25,3.85514906]
[1755446883183,3.79376896,195.26,195.25,0.66]
[1755446883377,3.79376896,195.26,195.24,40.35514906]
[1755446883579,6.64591298,195.27,195.25,3.85514906]
[1755446883773,3.79559751,195.26,195.25,3.85514906]
[1755446883983,3.79559751,195.26,195.22,0.66]
[1755446883984,7.65074657,195.26,195.22,0.66]
[1755446884205,7.65074657,195.25,195.23,36.48]
[1755446884405,7.65074657,195.24,195.23,36.48]
[1755446885610,3.85514906,195.24,195.23,36.48]
[1755446885794,7.65648252,195.24,195.23,36.48]
[1755446886117,7.65648314,195.24,195.23,36.48]
[1755446886292,8.37648314,195.24,195.23,36.48]
[1755446886682,28.60459995,195.24,195.23,36.48]
[1755446887104,15.10621557,195.23,195.16,0.03]
[1755446887309,3.85514906,195.19,195.17,36.5]
[1755446887490,7.2260415,195.22,195.17,36.5]
[1755446887491,7.65648314,195.18,195.17,36.5]
[1755446889794,3.80133408,195.18,195.17,36.5]
[1755446890111,3.80133408,195.18,195.17,37.16]
[1755446890702,3.80133408,195.18,195.17,42.28373827]
[1755446891611,3.80133408,195.18,195.17,37.16]
[1755446891817,3.80133408,195.18,195.17,42.28373827]
[1755446893414,3.80133408,195.18,195.17,41.62373827]
[1755446893800,3.80133408,195.18,195.17,36.5]
[1755446894725,3.82099977,195.18,195.17,37.18]
[1755446894923,7.64199954,195.18,195.17,37.18]
[1755446898020,7.64580826,195.18,195.17,37.18]
[1755446898792,7.64580826,195.18,195.17,36.5]
[1755446899230,3.82099977,195.18,195.17,36.5]
[1755446899607,7.64729664,195.18,195.17,36.5]
[1755446900828,7.64729664,195.18,195.17,37.18]
[1755446901510,3.82099977,195.18,195.17,42.30373827]
[1755446902253,23.4423644,195.18,195.16,0.03]
[1755446902398,18.96136463,195.17,195.16,0.03]
[1755446902603,23.44927273,195.17,195.16,36.51]
[1755446903315,28.573011,195.17,195.16,36.51]
[1755446903730,28.573011,195.17,195.16,0.03]
[1755446903948,28.19071416,195.17,195.16,0.03]
[1755446904265,32.01899844,195.17,195.16,0.03]
[1755446905458,58.01899844,195.17,195.16,0.03]
[1755446905635,32.01899844,195.17,195.16,0.03]
[1755446908958,32.01899844,195.17,195.15,0.03]
[1755446909133,26.89526017,195.16,195.15,0.03]
[1755446909520,32.01926098,195.16,195.15,0.03]
[1755446911524,15.10621557,195.15,195.14,0.03]
[1755446911723,26.89526017,195.15,195.14,0.03]
[1755446913264,23.06697589,195.15,195.14,0.03]
[1755446913563,32.01110112,195.15,195.14,0.03]
[1755446913772,44.96136463,195.15,195.14,0.03]
[1755446913933,3.85514906,195.16,195.14,0.71]
[1755446914129,20.2300204,195.17,195.14,0.71]
[1755446914130,3.85514906,195.15,195.14,0.71]
[1755446914342,3.85514906,195.16,195.14,0.71]
[1755446914650,15.10621557,195.17,195.14,0.71]
[1755446914852,15.10621557,195.17,195.14,0.03]
[1755446915052,3.82099977,195.18,195.15,0.68]
[1755446915261,3.82099977,195.18,195.16,0.68]
[1755446915561,15.10621557,195.17,195.15,5.12426338]
[1755446916055,15.10621557,195.17,195.16,0.68]
[1755446918026,3.82099977,195.18,195.16,4.53514906]
[1755446918238,3.82099977,195.18,195.17,3.85514906]
[1755446918665,3.82099977,195.18,195.17,4.53514906]
[1755446918826,3.82099977,195.18,195.17,0.68]
[1755446919364,15.10621557,195.17,195.14,37.19]
[1755446919655,15.10621557,195.17,195.14,42.31446727]
[1755446920032,15.10621557,195.17,195.15,0.68]
[1755446920530,15.10621557,195.17,195.14,45.48965838]
[1755446920857,3.82099977,195.18,195.16,4.53514906]
[1755446921046,3.82099977,195.18,195.17,0.68]
[1755446921930,3.82099977,195.18,195.15,8.97935532]
[1755446922234,3.82099977,195.18,195.15,9.65935532]